Cogmind - Beta 12 @@@ ROGUE MODE // 2023.06.08 @ 21:23:24 Player: Jimzor Result: Destroyed by DAS Turret with DAS Cannon Performance ------------- Evolutions (0) 0 Regions Visited (3) 600 Robots Destroyed (36) 180 Value Destroyed (901) 901 Prototype IDs (23) 460 Alien Tech Used (0) 0 Bonus (275) 275 TOTAL SCORE: 2416 Bonus ------- Aligned with FarCom 300 Friendly Fire -25 Cogmind --------- Core Integrity 0/250 Matter 230/300 Energy 156/160 System Corruption 0% Temperature Cool (2) Movement Treading (240) Ox1 Location -10/Exiles Parts ------- > --- POWER (1) -------- Light Nuclear Core > --- PROPULSION (2) --- Light Treads Light Treads > --- UTILITY (2) ------ High-capacity Storage Unit Sensor Array > --- WEAPON (2) ------- Medium Laser Medium Laser > --- INVENTORY (20) --- Light Nuclear Core Light Treads Light Treads Light Treads Improved Heat Sink High-capacity Matter Pod (200) Visual Processing Unit Sensor Array Signal Interpreter Improved Terrain Scanner AWS/Thermal Grenade Launcher Grenade Launcher Grenade Launcher Peak State ------------ > --- POWER ------------ Light Nuclear Core > --- PROPULSION ------- Light Treads Light Treads > --- UTILITY ---------- Improved Heat Sink Large Storage Unit > --- WEAPON ----------- Medium Laser Medium Laser > --- INVENTORY -------- Light Nuclear Core Light Treads Light Treads Light Treads Heat Sink High-capacity Matter Pod Visual Processing Unit Sensor Array Sensor Array Signal Interpreter Improved Terrain Scanner Medium Laser Grenade Launcher Grenade Launcher Grenade Launcher [Rating: 13] Favorites ----------- Power Ion Engine Engine Ion Engine Power Core Light Nuclear Core Propulsion Wheel Treads Light Treads Wheel Wheel Utility Large Storage Unit Device Seismic Detector Storage Large Storage Unit Weapon Medium Laser Energy Gun Medium Laser Ballistic Gun Light Assault Rifle Launcher Grenade Launcher Build | -11 -10 -10 -10 ------- Run | Jun Mat Min Exi Slots Evolved . | . . . . Power . | . . . . Propulsion . | . . . . Utility . | . . . . Weapon . | . . . . Parts Attached 32 | 7 17 7 1 Power 5 | 1 3 1 . Engine 3 | 1 2 . . Core 2 | . 1 1 . Reactor . | . . . . Propulsion 7 | 2 5 . . Treads 2 | . 2 . . Leg . | . . . . Wheel 5 | 2 3 . . Hover . | . . . . Flight . | . . . . Utility 10 | 2 5 2 1 Device 6 | 1 3 2 . Storage 4 | 1 2 . 1 Processor . | . . . . Hackware . | . . . . Protection . | . . . . Artifact . | . . . . Weapon 10 | 2 4 4 . Energy Gun 6 | 1 3 2 . Energy Cannon . | . . . . Ballistic Gun 2 | 1 1 . . Ballistic Cannon . | . . . . Launcher 2 | . . 2 . Special Weapon . | . . . . Impact Weapon . | . . . . Slashing Weapon . | . . . . Piercing Weapon . | . . . . Special Melee Weapon . | . . . . Unidentified Prototypes . | . . . . Parts Lost 5 | . 4 1 . Power . | . . . . Propulsion 1 | . 1 . . Utility 2 | . 1 1 . Weapon 2 | . 2 . . Highest Loss Streak 2 | . 2 1 . To Critical Strikes . | . . . . Average Slot Usage (%) 98 | . 98 98 100 Engine 8 | . 13 2 . Core 5 | . . 12 14 Treads 13 | . 3 28 28 Wheel 14 | . 23 . . Device 13 | . 13 12 14 Storage 14 | . 14 14 14 Energy Gun 18 | . 13 20 28 Ballistic Gun 8 | . 14 . . Launcher 1 | . . 8 . Naked Turns . | . . . . Heaviest Build 50 | 11 30 32 50 Greatest Support 40 | 20 40 40 40 Greatest Overweight (x) 2 | 2 1 . 1 Average Overweight (x) . | . . . . Largest Inventory Capacity 20 | 8 15 15 20 Average Capacity 12 | 7 10 15 15 Most Carried 15 | 8 15 15 15 Average Carried 11 | 5 9 15 14 Final Capacity 20 | 8 15 15 20 Final Carried 15 | 8 15 15 15 Class Distribution -------------------- 86% | Mutant 13% | Scavenger-Mutant Dominant Class ---------------- Mutant | -10/Materials Mutant | -10/Mines Mutant | -10/Exiles Resources | -11 -10 -10 -10 ----------- Run | Jun Mat Min Exi Matter Collected 785 | 281 474 30 . Remotely . | . . . . Salvage Created 1470 | 156 928 386 . Parts 80 | 15 51 14 . Haulers Intercepted 1 | . 1 . . Recyclers Shooed 2 | 1 1 . . Parts Field Recycled . | . . . . Retrieved Matter . | . . . . Parts Self-Destructed . | . . . . Prevented . | . . . . Kills | -11 -10 -10 -10 ------- Run | Jun Mat Min Exi Combat Hostiles Destroyed 18 | . 14 4 . Guns 13 | . 11 2 . AOE 2 | . . 2 . Classes Destroyed 6 | 3 3 . . Worker 1 | 1 . . . Tunneler 5 | 3 1 1 . Hauler 1 | . 1 . . Recycler 8 | 1 4 3 . Watcher 3 | . 3 . . Grunt 18 | . 14 4 . Best Kill Streak 4 | 4 4 3 . Combat Bots Only 2 | . 2 2 . Max Kills in Single Turn 3 | 1 1 3 . Gunslinging . | . . . . Exploded 2 | . . 2 . Melee . | . . . . Uniques/NPCs Destroyed . | . . . . Combat | -11 -10 -10 -10 -------- Run | Jun Mat Min Exi Damage Taken 1041 | . 736 166 139 Core 259 | . 171 40 48 Absorbed by Shields . | . . . . Core Remaining (%) 100 | 100 . . . Volleys Fired 133 | 13 102 17 1 Largest 2 | 2 2 2 2 Hottest 100 | 60 100 100 100 Shots Fired 265 | 26 203 34 2 Gun 263 | 26 203 32 2 Cannon . | . . . . Launcher 2 | . . 2 . Special . | . . . . Kinetic 135 | 13 122 . . Thermal 128 | 13 81 32 2 Explosive 2 | . . 2 . Electromagnetic . | . . . . Robot Hit Streak 12 | 4 8 12 5 Robot Miss Streak 4 | 2 4 2 . Penetration Max . | . . . . Secondary Targets 2 | . 2 . . Max Gunslinging Chain 1 | . 1 . . Shots Hit Robots 160 | 16 119 23 2 Core Hits 70 | 6 48 15 1 Critical Kills . | . . . . Critical Parts Destroyed . | . . . . Critical Strikes 8 | . 6 2 . Burn 8 | . 6 2 . Melee Attacks . | . . . . Impact . | . . . . Slashing . | . . . . Piercing . | . . . . Sneak Attacks . | . . . . Combat Hostiles . | . . . . Follow-up Attacks . | . . . . Damage Inflicted 1824 | 151 1187 461 25 Guns 1640 | 151 1187 277 25 Cannons . | . . . . Explosions 184 | . . 184 . Melee . | . . . . Ramming . | . . . . Kinetic 663 | 77 586 . . Thermal 1161 | 74 601 461 25 Explosive . | . . . . Electromagnetic . | . . . . Impact . | . . . . Slashing . | . . . . Piercing . | . . . . Highest Corruption . | . . . . Average Corruption . | . . . . Corruption Purged . | . . . . Corruption Blocked . | . . . . Overload Shots . | . . . . Overflow Damage . | . . . . Projectiles . | . . . . Explosions . | . . . . Melee . | . . . . Knockbacks . | . . . . Impact . | . . . . Kinetic . | . . . . Secondary . | . . . . Self-Inflicted Damage . | . . . . Shots . | . . . . Rammed . | . . . . Targets Rammed . | . . . . Kicked . | . . . . Crushed . | . . . . Highest Temperature 360 | 20 341 360 45 Average Temperature 84 | 10 74 139 26 Received Heat Transfer 516 | . 426 90 . Effects 2 | . . 2 . Interference 2 | . . 2 . Siege Activations . | . . . . Robots Corrupted . | . . . . Combat Hostiles . | . . . . Parts Fried . | . . . . Impact Corruptions . | . . . . Robots Melted 3 | . 3 . . Combat Hostiles 3 | . 3 . . Parts Melted 8 | . 6 2 . Heat Transferred 3681 | 175 2220 1212 74 Parts Sabotaged . | . . . . Parts Stolen . | . . . . Parts Stripped . | . . . . Power Chain Reactions . | . . . . Missiles Intercepted . | . . . . Alert | -11 -10 -10 -10 ------- Run | Jun Mat Min Exi Peak Influence 343 | 25 200 343 . Initial 49 | . 16 49 . Average 93 | 8 82 172 . Maximum Alert Level 1 | . 1 1 . Low Security (%) 94 | 100 98 72 . Level 1 5 | . 1 27 . Level 2 . | . . . . Level 3 . | . . . . Level 4 . | . . . . Level 5 . | . . . . High Security . | . . . . Max Security . | . . . . Squads Dispatched 4 | . 4 . . Investigation 3 | . 3 . . Extermination . | . . . . Reinforcement 1 | . 1 . . Assault . | . . . . Garrison . | . . . . Intercept . | . . . . Searches Triggered . | . . . . Construction Impeded . | . . . . Haulers Reinforced . | . . . . Active Scanning Responses . | . . . . Cargo Convoy Interrupts . | . . . . Stealth | -11 -10 -10 -10 --------- Run | Jun Mat Min Exi Distress Signals . | . . . . Communications Jammed . | . . . . Distress Signals . | . . . . Times Spotted 27 | . 23 2 2 Peak Tracking Total 11 | . 3 2 11 Tactical Retreats 1 | . . . 1 Traps | -11 -10 -10 -10 ------- Run | Jun Mat Min Exi Traps Triggered 2 | . 2 . . Indirectly . | . . . . Trap Hack Attempts . | . . . . Triggered . | . . . . Disarmed . | . . . . Reprogrammed . | . . . . Reused . | . . . . Traps Extracted . | . . . . Installed . | . . . . Triggered . | . . . . Machines | -11 -10 -10 -10 ---------- Run | Jun Mat Min Exi Machines Disabled 10 | . 1 9 . Max in Single Turn 9 | . 1 9 . Machines Repaired . | . . . . Machines Sabotaged . | . . . . Overloaded Fab Kills . | . . . . Hacking | -11 -10 -10 -10 --------- Run | Jun Mat Min Exi Machines Accessed 13 | . 9 . 4 Terminals 7 | . 7 . . Fabricators . | . . . . Repair Stations . | . . . . Recycling Units 2 | . 2 . . Scanalyzers . | . . . . Garrison Access . | . . . . Total Hacks 56 | . 29 . 27 Successful 41 | . 14 . 27 Failed 15 | . 15 . . Catastrophic 1 | . 1 . . Database Lockouts . | . . . . Manual 5 | . 3 . 2 Terminals 23 | . 23 . . Fabricators . | . . . . Repair Stations . | . . . . Recycling Units 6 | . 6 . . Scanalyzers . | . . . . Garrison Access . | . . . . Terminal Hacks 36 | . 9 . 27 Record 26 | . . . 26 Branch Access Points 1 | . 1 . . Alert Level 1 | . 1 . . Locate Traps 2 | . 2 . . Dispatch Records 1 | . 1 . . Maintenance Status 1 | . 1 . . Patrol Status 1 | . 1 . . Zone Layout 2 | . 2 . . EX-Prototype ID Bank 1 | . . . 1 Fabricator Hacks . | . . . . Repair Station Hacks . | . . . . Recycling Unit Hacks 5 | . 5 . . Process 1 | . 1 . . Report Inventory 2 | . 2 . . Retrieve Matter 1 | . 1 . . Retrieve Components 1 | . 1 . . Scanalyzer . | . . . . Garrison Access Hacks . | . . . . Unauthorized Hacks . | . . . . Terminals . | . . . . Fabricators . | . . . . Repair Stations . | . . . . Recycling Units . | . . . . Scanalyzers . | . . . . Garrison Access . | . . . . Data Cores Recovered . | . . . . Used . | . . . . Hacking Detections 8 | . 8 . . Full Trace Events 1 | . 1 . . Feedback Events . | . . . . Feedback Blocked . | . . . . Robot Schematics Acquired . | . . . . Robots Built . | . . . . Authchips . | . . . . Time . | . . . . Total Robot Build Rating . | . . . . Part Schematics Acquired . | . . . . Parts Built . | . . . . Authchips . | . . . . Time . | . . . . Total Part Build Rating . | . . . . Parts Repaired . | . . . . Time . | . . . . Parts Recycled . | . . . . Recycled Matter 10 | . 10 . . Retrieved Matter 10 | . 10 . . Retrieved Components 2 | . 2 . . Parts Scanalyzed . | . . . . Part Schematics Acquired . | . . . . Parts Damaged . | . . . . Bothacking | -11 -10 -10 -10 ------------ Run | Jun Mat Min Exi Used RIF Installer . | . . . . Robots Hacked . | . . . . Non-combat . | . . . . Combat . | . . . . Robot Hacks Applied . | . . . . Relay Couplers Released . | . . . . Fabnet Peak Effective % . | . . . . Robots Rewired . | . . . . Allies Hacked . | . . . . Hacks Repelled . | . . . . Allies | -11 -10 -10 -10 -------- Run | Jun Mat Min Exi Total Allies . | . . . . Largest Group . | . . . . Highest-Rated Group . | . . . . Highest-Rated Ally . | . . . . Total Orders . | . . . . Ally Attacks . | . . . . Total Damage . | . . . . Kills . | . . . . Allies Corrupted . | . . . . Allies Melted . | . . . . Intel | -11 -10 -10 -10 ------- Run | Jun Mat Min Exi Robot Analysis Total . | . . . . Derelict Logs Recovered 1 | . . 1 . Drone Launches . | . . . . Drone Recoveries . | . . . . Exploration | -11 -10 -10 -10 ------------- Run | Jun Mat Min Exi Turns Passed 2044 | 120 1170 287 467 Spaces Moved 1385 | 60 908 137 280 Core 42 | 42 . . . Treads 489 | . 72 137 280 Legs . | . . . . Wheels 854 | 18 836 . . Hover . | . . . . Flight . | . . . . Fastest Speed 50 | 50 80 160 160 Average Speed 112 | 99 90 160 164 Slowest Speed 240 | 150 160 160 240 Overloaded Moves . | . . . . Propulsion Burnouts . | . . . . Robots Hopped . | . . . . Cave-ins Triggered . | . . . . Exploration Rate (%) 48 | 4 99 38 52 Regions Visited 3 Branch Regions 2 Pre-discovered Areas 1 | . . 1 . Known Exits Taken 1 | . 1 . . Unknown Exits Taken 2 | 1 . 1 . Scrap Searched . | . . . . Spaces Dug . | . . . . Terrain Destroyed 36 | . . 36 . Melee . | . . . . Projectile . | . . . . AOE 36 | . . 36 . Terrain Rammed . | . . . . Walls Destroyed . | . . . . Machines Disabled . | . . . . Actions | -11 -10 -10 -10 --------- Run | Jun Mat Min Exi Total 1630 | 97 1076 168 289 Wait 21 | . 14 7 . Move 1382 | 59 907 136 280 Hop . | . . . . Pick Up 38 | 16 21 . 1 Fast Attach 4 | 1 2 1 . Attach 10 | 6 4 . . Detach . | . . . . Swap 18 | . 11 6 1 Drop 21 | 2 15 1 3 Fire 133 | 13 102 17 1 Melee . | . . . . Ram . | . . . . Kick . | . . . . Crush . | . . . . Escape Stasis . | . . . . Rewire 3 | . . . 3 Trap . | . . . . Miscellaneous . | . . . . Route ------- -11/Junkyard -10/Materials (discovered 5 exits: [*Mat x3] / *Min x2) -10/Mines -10/Exiles (discovered 1 exit: [*Min]) History --------- Turn | Location | Event 3 | -11/Junkyard | Discovered new exit (range 16) 121 | -11/Junkyard | Entered Materials 175 | -10/Materials | Discovered new exit (range 13) 247 | -10/Materials | Identified exit to Mines 304 | -10/Materials | Build established: Mutant 316 | -10/Materials | Discovered new exit (range 9) 530 | -10/Materials | Discovered new exit (range 7) 743 | -10/Materials | Discovered new exit (range 3) 783 | -10/Materials | Core integrity fell below 50% 1291 | -10/Materials | Entered Mines 1312 | -10/Mines | Core integrity fell below 20% 1411 | -10/Mines | Learned location of Zion (-7) 1567 | -10/Mines | Deemed a non-threat by the Exiles lab entrance 1568 | -10/Mines | Discovered new exit (range 5) 1578 | -10/Mines | Entered Exiles 1602 | -10/Exiles | Discovered new exit (range 15) 1654 | -10/Exiles | Met 8R-AWN 1681 | -10/Exiles | Met EX-HEX 1730 | -10/Exiles | Met EX-BIN 1756 | -10/Exiles | Aligned with FarCom system 1758 | -10/Exiles | Given EX-Vault access code 1812 | -10/Exiles | Opened EX-Vault 1853 | -10/Exiles | Found AWS/Thermal 1888 | -10/Exiles | Warned to stay clear of 0b10 Research branches 2040 | -10/Exiles | Attacked by the Exiles 2045 | -10/Exiles | Destroyed by DAS Turret with DAS Cannon Last Messages --------------- welcome to try if you really want to. And if we have to leave here due to unforeseen circumstances, don't worry the FarCom system will continue to maintain contact via our distributed network. EX-BIN: And don't even think about spreading that code around. We're gonna change it right after you leave. Most certainly not to something like 1234 which I did last time as a little joke and some thief managed to sneak in here and steal a few of HEX's prototypes. 01956_ Attempting to rewire as-98090. 01956_ as-98090 cannot be rewired. 02007_ Dropped Lrg. Storage Unit. 02037_ Attempting to rewire A-02 Transporter. 02037_ A-02 Transporter is unpowered. 02038_ Attempting to rewire A-02 Transporter. 02038_ A-02 Transporter is unpowered. 02040_ EXILES: Hostile robot within lab perimeter. Defensive protocols time, folks! Map ----- +----------------------------------------------------+ | ????????????????????????????# """###??? | | ????????????????????????????#" "X" """""???? | | ????????????????????????????#" """ # ???? | | ????????????????????????????#" """""""""#????? | | ???????????????????????????##" ###########????? | | ??????????????????????????##"" #??????????????? | | ????????????????????????###"" #??????????????? | | ??????????????????????""""""" ##?????????????? | | ?????????????????????""" " "" ##???########## | | ???????????????????" """ " #####""""""""" | | ???????????????????" " " """ """ | | ????????????????? "" " | | ????????????????? " " | | ????????????????? " | | ?????????????????? " | | ?????????????????? | | ??????????????????? """""" | | ??????????????????? ######""" | | ???????????? ???? ""#?????#####""" | | ???????????? ???"""???????????##""" | | ???????????? ????????????????#"""" | | ??????????? ??????????????##"" | | ??????????? #??#####??####"""" | | ?????????? ##aaa####""" | | ?????????? """" | | ?????????? @ | | ?????????? % % a a | | ?????????? % " | | ??????????? " "" """ | | ???????????c ""## ##""" " " ""#" | | ???????????? ""#### ######""" """##""" | | ???????????? """"##??# #????###""""###### | | ???????????? """???## ####???######????? | | ????????????? ""#???#! "!#?????????????? | | ????????????? """?????#" !#?????????????? | | ?????????????? ???????#" "#?????????????? | | ?????????????? ??????????#!!""!"#?????????????? | | ???????????????? ???????????########?????????????? | | ?????????????????????????????????????????????????? | | ?????????????????????????????????????????????????? | | ?????????????????????????????????????????????????? | | ?????????????????????????????????????????????????? | | ?????????????????????????????????????????????????? | | ?????????????????????????????????????????????????? | | ?????????????????????????????????????????????????? | | ?????????????????????????????????????????????????? | | ?????????????????????????????????????????????????? | | ?????????????????????????????????????????????????? | | ?????????????????????????????????????????????????? | | ?????????????????????????????????????????????????? | +----------------------------------------------------+ Best States ------------- Heat Dissipation 39 Energy Generation 14 Energy Capacity 250 Matter Stores 300 Matter Capacity 300 Sight Range 16 Robot Scan Range 14 Terrain Scan Range 16 Terrain Scan Density 10 Evasion (%) 50 Recoil Reduction 2 Item Schematics ----------------- None Robot Schematics ------------------ None Fabricated ------------ Nothing Alien Tech Used ----------------- None Achievements -------------- None Challenges ------------ None Game ------ Seed AerolevHugePlating Manual? 0 Play Time 00:35:07 Cumulative 34.3 hours Start 2023.06.08 @ 20:48:13 End 2023.06.08 @ 21:23:24 Sessions 1 Manual Loads 0 Difficulty Rogue Special Mode None Game No. 22 Rogue 22 Adventurer 0 Explorer 0 Win Type - Total 0 Types 0/0/0/0/0/0/0/0/0 Lore% 18 Gallery% 39 Achievement% 22 Wizard Run 0 Options --------- ASCII 0 Keyboard 0 Movement Mouse Keybinds 0 Fullscreen 1 Font 16/SmallcapsGlow Map View 50x54 Tactical HUD 1 Map Filters NONE Filters NONE Steam 1 RUN: 91caaec8-24c0-4040-a2f7-5c709c6fe0ae